bitfinex/quotes_BTCUSD_20241013
["timestamp","ask_amount","ask_price","bid_price","bid_amount"]
[1728777601961,0.56898286,63336.0,63335.0,0.01071216]
[1728777602836,0.56998286,63336.0,63335.0,0.01071216]
[1728777603052,0.45180858,63336.0,63335.0,0.01071216]
[1728777603678,0.43703676,63336.0,63335.0,0.00576658]
[1728777604368,0.62093676,63336.0,63335.0,0.000821]
[1728777604577,0.1827,63329.0,63328.0,0.000821]
[1728777604783,0.19747164,63329.0,63328.0,0.000821]
[1728777605197,0.1827,63329.0,63328.0,0.000821]
[1728777605428,0.1974677,63329.0,63328.0,0.000821]
[1728777606746,0.1974677,63329.0,63328.0,0.005821]
[1728777608258,0.0147677,63329.0,63328.0,0.1038317]
[1728777608468,0.11012632,63329.0,63328.0,0.1098317]
[1728777608678,0.0157677,63329.0,63328.0,0.1098317]
[1728777608892,0.0865384,63329.0,63328.0,0.1098317]
[1728777609108,0.0157677,63329.0,63328.0,0.1098317]
[1728777609375,0.0157677,63329.0,63328.0,0.28327759]
[1728777609376,0.0945677,63329.0,63328.0,0.28327759]
[1728777612589,0.0798,63329.0,63328.0,0.28327735]
[1728777612802,0.09454154,63329.0,63328.0,0.28327735]
[1728777613228,0.11928115,63329.0,63328.0,0.28327735]
[1728777614547,0.11928115,63329.0,63328.0,0.5504249]
[1728777614768,0.11928115,63329.0,63328.0,0.4524142]
[1728777615408,0.11928115,63329.0,63328.0,0.4474138]
[1728777615878,0.11928115,63329.0,63328.0,0.46481715]
[1728777616092,0.11828115,63329.0,63328.0,0.45881715]
[1728777616300,0.11828115,63329.0,63328.0,0.46681738]
[1728777616511,0.11828115,63329.0,63328.0,0.47381738]
[1728777616936,0.09354154,63329.0,63328.0,0.47381738]
[1728777620144,0.11828002,63329.0,63328.0,0.47381738]
[1728777620355,0.09354154,63329.0,63328.0,0.47381738]
[1728777621004,0.09354154,63329.0,63328.0,0.57182808]
[1728777621665,0.09354154,63329.0,63328.0,0.59482808]
[1728777621878,0.09354154,63329.0,63328.0,0.61856353]
[1728777622969,0.0788,63329.0,63328.0,0.59856353]
[1728777623177,0.09353647,63329.0,63328.0,0.61256353]
[1728777623386,0.0788,63329.0,63328.0,0.61256353]
[1728777623645,0.10353515,63329.0,63328.0,0.61256353]
[1728777623856,0.10353515,63329.0,63328.0,0.58981469]
[1728777624070,0.10353515,63329.0,63328.0,0.61255994]
[1728777624281,0.02473515,63329.0,63328.0,0.61955994]
[1728777624495,0.001642,63336.0,63335.0,0.002]
[1728777624708,0.0409488,63336.0,63335.0,0.48534635]
[1728777624948,0.001642,63337.0,63336.0,0.1034]
[1728777625179,0.001642,63337.0,63336.0,0.39257626]
[1728777625392,0.001642,63341.0,63340.0,0.3889214]
[1728777625603,0.001642,63341.0,63340.0,0.57484635]
[1728777625816,0.001642,63341.0,63340.0,0.53164635]
[1728777626035,0.001642,63341.0,63340.0,0.54388998]
[1728777626493,0.001642,63341.0,63340.0,0.53204505]
[1728777626709,0.001642,63341.0,63340.0,0.54388998]
[1728777626916,0.001642,63341.0,63340.0,0.55788998]
[1728777627562,0.001642,63341.0,63340.0,0.55213366]
[1728777627784,0.001642,63341.0,63340.0,0.66004505]
[1728777628000,0.001642,63341.0,63340.0,0.67188998]
[1728777628444,0.001642,63341.0,63340.0,0.66004505]
[1728777628874,0.001642,63341.0,63340.0,0.63204505]
[1728777629103,0.001642,63355.0,63341.0,0.0989]
[1728777629320,0.003642,63355.0,63341.0,0.46109003]
[1728777629540,0.001642,63355.0,63341.0,0.47309516]
[1728777629759,0.003642,63355.0,63341.0,0.47309516]
[1728777629968,0.001642,63355.0,63341.0,0.47309516]
[1728777630717,0.26249719,63353.0,63341.0,0.63097016]
[1728777630926,0.26249719,63353.0,63341.0,0.65897016]
[1728777631798,0.02637154,63353.0,63341.0,0.57909516]
[1728777632019,0.001642,63355.0,63349.0,0.023]
[1728777632235,0.23612565,63351.0,63350.0,0.35706863]
[1728777632447,0.001642,63355.0,63354.0,0.180843]
[1728777632668,0.001642,63355.0,63354.0,0.34206701]
[1728777633124,0.001642,63355.0,63354.0,0.35403059]
[1728777633338,0.001642,63355.0,63354.0,0.55005199]
[1728777633764,0.001642,63355.0,63354.0,0.56405199]
[1728777634463,0.001642,63355.0,63354.0,0.34503059]
[1728777634695,0.001642,63355.0,63354.0,0.44304129]
[1728777634919,0.001642,63355.0,63354.0,0.45704129]
[1728777645477,0.01632986,63355.0,63354.0,0.46198434]
[1728777645699,0.01632986,63355.0,63354.0,0.45704129]
[1728777646392,0.01632986,63355.0,63354.0,0.46198434]
[1728777647001,0.01632986,63355.0,63354.0,0.48498434]
[1728777647218,0.001642,63355.0,63354.0,0.58299504]
[1728777648491,0.001642,63355.0,63354.0,0.590904]
[1728777648700,0.001642,63355.0,63354.0,0.669004]
[1728777649322,0.001642,63355.0,63354.0,0.5709933]
[1728777649529,0.001642,63355.0,63354.0,0.669004]
[1728777649755,0.001642,63355.0,63354.0,0.5709933]
[1728777650784,0.001642,63355.0,63354.0,0.58280263]
[1728777653547,0.001642,63356.0,63354.0,0.58280263]
[1728777653548,0.001642,63356.0,63355.0,0.18084]
[1728777653758,0.001642,63356.0,63355.0,0.38568278]
[1728777653973,0.02472481,63364.0,63363.0,0.15782]
[1728777654187,0.02472481,63364.0,63363.0,0.47869203]
[1728777654418,0.02472481,63364.0,63363.0,0.65679203]
[1728777654665,0.001642,63367.0,63366.0,0.157813]
[1728777654871,0.001642,63367.0,63366.0,0.46473309]
[1728777655078,0.001642,63367.0,63366.0,0.47861918]
[1728777657199,0.001642,63367.0,63366.0,0.49261918]
[1728777657689,0.001642,63367.0,63366.0,0.4679338]
[1728777657933,0.001642,63367.0,63366.0,0.50661034]
[1728777659579,0.001642,63367.0,63366.0,0.84074669]
[1728777659836,0.001642,63367.0,63366.0,0.63629104]
[1728777660067,0.001642,63367.0,63366.0,0.53828034]
[1728777660521,0.001642,63367.0,63366.0,0.51028034]
[1728777660750,0.001642,63367.0,63366.0,0.53828034]
[1728777660993,0.001642,63367.0,63366.0,0.52428034]
[1728777661215,0.001642,63367.0,63366.0,0.48728034]
[1728777661447,0.003642,63367.0,63366.0,0.48728034]
[1728777661666,0.02721608,63367.0,63366.0,0.48728034]
[1728777661970,0.11771608,63367.0,63366.0,0.2965584]
[1728777662213,0.11771608,63367.0,63366.0,0.1985477]
[1728777662423,0.11771608,63367.0,63366.0,0.0547347]
[1728777662642,0.19421608,63367.0,63366.0,0.20464086]
[1728777663093,0.21878235,63367.0,63366.0,0.20464086]
[1728777663727,0.21878235,63367.0,63366.0,0.04682786]
[1728777663978,0.19421608,63367.0,63366.0,0.04682885]
[1728777664198,0.19421608,63367.0,63366.0,0.04188609]
[1728777664416,0.21894114,63367.0,63366.0,0.04682883]
[1728777664635,0.21894114,63367.0,63366.0,0.04188609]
[1728777665478,0.37675114,63367.0,63366.0,0.04188609]
[1728777665925,0.21894114,63367.0,63366.0,0.04188609]
[1728777666562,0.37675114,63367.0,63366.0,0.04188609]
[1728777667648,0.21894114,63367.0,63366.0,0.04188609]
[1728777668078,0.21893832,63367.0,63366.0,0.19969909]
[1728777668760,0.21893832,63367.0,63366.0,0.04188609]
[1728777670261,0.21893832,63367.0,63366.0,0.19969909]
[1728777672949,0.19421326,63367.0,63366.0,0.19969909]
[1728777673368,0.35202326,63367.0,63366.0,0.04188609]
[1728777675543,0.35202496,63367.0,63366.0,0.04188609]
[1728777676018,0.19421496,63367.0,63366.0,0.04188609]
[1728777676230,0.35202496,63367.0,63366.0,0.04188609]
[1728777677280,0.37675035,63367.0,63366.0,0.04188609]
[1728777678100,0.21894035,63367.0,63366.0,0.04188609]
[1728777678518,0.21894035,63367.0,63366.0,0.028]
[1728777678776,0.37675035,63367.0,63366.0,0.0429461]
[1728777678990,0.37675035,63367.0,63366.0,0.028]
[1728777679408,0.37675035,63367.0,63366.0,0.0429461]
[1728777680488,0.21894035,63367.0,63366.0,0.2007591]
[1728777680697,0.04994035,63367.0,63366.0,0.185813]
[1728777680902,0.05194035,63367.0,63366.0,0.2007591]
[1728777681991,0.04994035,63367.0,63366.0,0.2007591]
[1728777682421,0.05194035,63367.0,63366.0,0.2007591]
[1728777683103,0.02836739,63367.0,63366.0,0.2007591]
[1728777683316,0.05194105,63367.0,63366.0,0.2007591]
[1728777683533,0.05194105,63367.0,63366.0,0.0429461]
[1728777684795,0.04799575,63367.0,63366.0,0.0429461]
[1728777685212,0.02557366,63367.0,63366.0,0.0429461]
[1728777685850,0.27638366,63367.0,63366.0,0.0429461]
[1728777686051,0.11857366,63367.0,63366.0,0.028]
[1728777686269,0.27638366,63367.0,63366.0,0.028]
[1728777686748,0.002,63363.0,63362.0,0.09811249]
[1728777687233,0.02558303,63363.0,63362.0,0.11306169]
[1728777687470,0.02558332,63363.0,63362.0,0.12294738]
[1728777688119,0.02558332,63363.0,63362.0,0.11800454]
[1728777688552,0.02558332,63363.0,63362.0,0.1229475]
[1728777689251,0.02558332,63363.0,63362.0,0.1369475]
[1728777689719,0.02558332,63363.0,63362.0,0.1509475]
[1728777690885,0.0256067,63363.0,63362.0,0.1509475]
[1728777692484,0.0256067,63363.0,63362.0,0.3087705]
[1728777692695,0.0256067,63363.0,63362.0,0.21065801]
[1728777693769,0.0256067,63363.0,63362.0,0.05283502]
[1728777693980,0.0256067,63363.0,63362.0,0.04789217]
[1728777694689,0.02562828,63363.0,63362.0,0.04789217]
[1728777697062,0.02362828,63363.0,63362.0,0.53953918]
[1728777697295,0.02362828,63363.0,63362.0,0.60127636]
[1728777697526,0.02362828,63363.0,63362.0,0.77853029]
[1728777697754,0.001642,63367.0,63366.0,0.157813]
[1728777697987,0.02526763,63367.0,63366.0,0.4648586]
[1728777698209,0.02526763,63367.0,63366.0,0.4965286]
[1728777698424,0.02526763,63367.0,63366.0,0.51267222]
[1728777699135,0.02526763,63367.0,63366.0,0.51999059]
[1728777699544,0.02526763,63367.0,63366.0,0.54799059]
[1728777699759,0.001642,63367.0,63366.0,0.54799059]
[1728777699981,0.001642,63367.0,63366.0,0.54067222]
[1728777700673,0.001642,63367.0,63366.0,0.58818029]
[1728777701553,0.001642,63367.0,63366.0,0.44255973]
[1728777702188,0.001642,63367.0,63366.0,0.44255762]
[1728777704527,0.001642,63367.0,63366.0,0.41785063]
[1728777704730,0.001642,63367.0,63366.0,0.43069926]
[1728777704935,0.001642,63367.0,63366.0,0.44252898]
[1728777707060,0.001642,63367.0,63366.0,0.44252903]
[1728777709530,0.01636837,63367.0,63366.0,0.44252903]
[1728777710573,0.04109028,63367.0,63366.0,0.44252903]
[1728777710788,0.04108908,63367.0,63366.0,0.44252892]
[1728777711220,0.001642,63374.0,63373.0,0.180795]
[1728777711427,0.001642,63374.0,63373.0,0.71708786]
[1728777711660,0.001642,63374.0,63373.0,0.73739301]
[1728777712622,0.001642,63374.0,63373.0,0.75139301]
[1728777712883,0.001642,63374.0,63373.0,0.65949301]
[1728777713110,0.001642,63374.0,63373.0,0.56646329]
[1728777713240,0.001642,63374.0,63373.0,0.54662301]
[1728777713451,0.001642,63374.0,63373.0,0.53479329]
[1728777713656,0.001642,63374.0,63373.0,0.52688648]
[1728777714314,0.001642,63374.0,63373.0,0.51288648]
[1728777714551,0.001642,63374.0,63373.0,0.52079288]
[1728777714770,0.001642,63374.0,63373.0,0.51788648]
[1728777714993,0.001642,63374.0,63373.0,0.50388648]
[1728777715232,0.001642,63374.0,63373.0,0.48988648]
[1728777715465,0.001642,63374.0,63373.0,0.50388648]
[1728777715702,0.001642,63374.0,63373.0,0.35826592]
[1728777715910,0.001642,63374.0,63373.0,0.37226592]
[1728777716141,0.001642,63374.0,63373.0,0.35826592]
[1728777716142,0.003642,63374.0,63373.0,0.35826592]
[1728777716625,0.001642,63374.0,63373.0,0.37226592]
[1728777717534,0.003642,63374.0,63373.0,0.37226592]
[1728777718501,0.003642,63374.0,63373.0,0.37226602]
[1728777719933,0.098242,63374.0,63373.0,0.37226602]
[1728777720170,0.176842,63374.0,63373.0,0.37226602]
[1728777720370,0.174842,63374.0,63373.0,0.37226602]
[1728777720576,0.174842,63374.0,63373.0,0.21104201]
[1728777720731,0.176842,63374.0,63373.0,0.21104201]
[1728777723176,0.19156689,63374.0,63373.0,0.21104201]
[1728777724013,0.19156689,63374.0,63373.0,0.19704201]
[1728777724468,0.19156689,63374.0,63373.0,0.21104201]
[1728777724684,0.19156689,63374.0,63373.0,0.19704201]
[1728777725102,0.19156689,63374.0,63373.0,0.20804201]
[1728777725308,0.19156689,63374.0,63373.0,0.18304201]
[1728777725541,0.19156689,63374.0,63373.0,0.19104201]
[1728777725748,0.19156689,63374.0,63373.0,0.20304201]
[1728777726382,0.19156689,63374.0,63373.0,0.21094907]
[1728777727036,0.19156689,63374.0,63373.0,0.19894907]
[1728777727462,0.19156689,63374.0,63373.0,0.20794907]
[1728777727666,0.1915918,63374.0,63373.0,0.20794907]
[1728777730808,0.1915178,63374.0,63373.0,0.20794907]
[1728777732029,0.1109178,63374.0,63373.0,0.20794907]
[1728777732240,0.0163178,63374.0,63373.0,0.36917308]
[1728777733070,0.0163178,63374.0,63373.0,0.46726554]
[1728777735102,0.0163178,63374.0,63373.0,0.4672652]
[1728777737357,0.0163178,63374.0,63373.0,0.47910958]
[1728777738311,0.0163178,63374.0,63373.0,0.47910984]
[1728777739667,0.0163178,63374.0,63373.0,0.4672652]
[1728777739883,0.0163178,63374.0,63373.0,0.20794873]
[1728777740297,0.04303941,63374.0,63373.0,0.20794873]
[1728777741584,0.04103941,63374.0,63373.0,0.20794873]
[1728777745808,0.04105253,63374.0,63373.0,0.20794901]
[1728777747558,0.01633092,63374.0,63373.0,0.20794901]
[1728777747779,0.01633092,63374.0,63373.0,0.20877001]
[1728777748523,0.01633092,63374.0,63373.0,0.22062471]
[1728777748949,0.01633092,63374.0,63373.0,0.23050824]
[1728777749422,0.01633176,63374.0,63373.0,0.23050786]
[1728777749687,0.01633176,63374.0,63373.0,0.23050787]
[1728777750426,0.01633176,63374.0,63373.0,0.39173188]
[1728777750427,0.01633164,63374.0,63373.0,0.39173188]
[1728777750686,0.04105281,63374.0,63373.0,0.39173188]
[1728777750920,0.04105281,63374.0,63373.0,0.48982434]
[1728777751638,0.00547525,63374.0,63373.0,0.48982434]
[1728777751896,0.23612565,63381.0,63373.0,0.33202934]
[1728777752150,0.23612565,63381.0,63380.0,0.25587046]
[1728777752421,0.23612565,63381.0,63380.0,0.26871899]
[1728777752664,0.002,63385.0,63383.0,0.157768]
[1728777752923,0.002,63385.0,63384.0,0.17802307]
[1728777753190,0.12491816,63386.0,63385.0,0.157766]
[1728777753471,0.0757,63386.0,63385.0,0.16270742]
[1728777753716,0.04921816,63387.0,63386.0,0.157763]
[1728777753717,0.002,63387.0,63386.0,0.157763]
[1728777753972,0.002,63387.0,63386.0,0.26079688]
[1728777754221,0.002,63387.0,63386.0,0.28103186]
[1728777754977,0.002,63387.0,63386.0,0.28703186]
[1728777755228,0.0932,63388.0,63387.0,0.157761]
[1728777755486,0.0932,63388.0,63387.0,0.16270242]
[1728777755737,0.0932,63388.0,63387.0,0.18293548]
[1728777756258,0.0719368,63389.0,63388.0,0.157758]
[1728777756519,0.02471864,63389.0,63388.0,0.17798914]
[1728777756740,0.02471864,63389.0,63388.0,0.18293056]
[1728777757486,0.12791816,63390.0,63388.0,0.02817256]
[1728777757724,0.28667416,63389.0,63388.0,0.02323114]
[1728777757956,0.31525281,63389.0,63388.0,0.02623114]
[1728777758192,0.31525281,63389.0,63388.0,0.006]
[1728777758193,0.60607167,63389.0,63388.0,0.006]
[1728777758431,0.51163534,63389.0,63388.0,0.006]
[1728777758672,0.51163534,63389.0,63388.0,0.02644564]
[1728777758908,0.51163534,63389.0,63388.0,0.006]
[1728777759142,0.62968076,63389.0,63388.0,0.003]
[1728777759642,0.62968076,63389.0,63388.0,0.005]
[1728777759920,0.51163534,63389.0,63388.0,0.005]
[1728777760150,0.51163534,63389.0,63383.0,0.23612565]
[1728777760151,0.005,63384.0,63383.0,0.23612565]
[1728777760380,0.22390403,63384.0,63383.0,0.23612565]
[1728777760593,0.22390403,63384.0,63383.0,0.02067419]
[1728777761033,0.005,63383.0,63376.0,0.33421811]
[1728777761252,0.04720542,63382.0,63381.0,0.157775]
[1728777761475,0.04720542,63382.0,63381.0,0.16271666]
[1728777761726,0.07192507,63382.0,63381.0,0.16271666]
[1728777762082,0.09552534,63382.0,63381.0,0.16271666]
[1728777762527,0.04831977,63382.0,63381.0,0.16271666]
[1728777763179,0.09552534,63382.0,63381.0,0.16271666]
[1728777763401,0.09552534,63382.0,63381.0,0.16671666]
[1728777763673,0.1338802,63382.0,63381.0,0.16671666]
[1728777763876,0.08667463,63382.0,63381.0,0.17071666]
[1728777764814,0.06307273,63382.0,63381.0,0.17071666]
[1728777765034,0.06907273,63382.0,63381.0,0.17071666]
[1728777765269,0.06907668,63382.0,63381.0,0.17071659]
[1728777765501,0.03071965,63382.0,63381.0,0.165775]
[1728777765726,0.09268115,63382.0,63381.0,0.17071657]
[1728777766238,0.09268115,63382.0,63381.0,0.16271657]
[1728777766682,0.09268115,63382.0,63381.0,0.172775]
[1728777766929,0.09268115,63382.0,63381.0,0.18562249]
[1728777767404,0.09268115,63382.0,63381.0,0.19462249]
[1728777767405,0.0679615,63382.0,63381.0,0.19462249]
[1728777767874,0.02960438,63382.0,63381.0,0.19462249]
[1728777768106,0.06796192,63382.0,63381.0,0.19462249]
[1728777771395,0.06796192,63382.0,63381.0,0.21546807]
[1728777771610,0.02960438,63382.0,63381.0,0.20262058]
[1728777771811,0.06795602,63382.0,63381.0,0.21546789]
[1728777772031,0.06959802,63382.0,63381.0,0.21546789]
[1728777772248,0.06959802,63382.0,63381.0,0.3766919]
[1728777772681,0.06959802,63382.0,63381.0,0.4578919]
[1728777773098,0.06959802,63382.0,63381.0,0.4488919]
[1728777773343,0.06959802,63382.0,63381.0,0.4598919]
[1728777774001,0.06959802,63382.0,63381.0,0.4448919]
[1728777774433,0.06959802,63382.0,63381.0,0.4568919]
[1728777774889,0.06959802,63382.0,63381.0,0.4458919]
[1728777775107,0.06959802,63382.0,63381.0,0.46608593]
[1728777775354,0.06960137,63382.0,63381.0,0.47792713]
[1728777775573,0.06960137,63382.0,63381.0,0.46492713]
[1728777775825,0.04599699,63382.0,63381.0,0.47892713]
[1728777776297,0.04599699,63382.0,63381.0,0.4717331]
[1728777776530,0.04599699,63382.0,63381.0,0.4597331]
[1728777776761,0.04599699,63382.0,63381.0,0.4737331]
[1728777777186,0.04599426,63382.0,63381.0,0.4737331]
[1728777781460,0.04600251,63382.0,63381.0,0.46088607]
[1728777781678,0.07071876,63382.0,63381.0,0.47373254]
[1728777783161,0.07071876,63382.0,63381.0,0.47455354]
[1728777784816,0.07071876,63382.0,63381.0,0.47455166]
[1728777785046,0.03235825,63382.0,63381.0,0.46170519]
[1728777785298,0.0707281,63382.0,63381.0,0.46271201]
[1728777785543,0.0707281,63382.0,63381.0,0.47455158]
[1728777785772,0.0707281,63382.0,63381.0,0.39335158]
[1728777786270,0.0707281,63382.0,63381.0,0.23212757]
[1728777786528,0.0707281,63382.0,63381.0,0.220288]
[1728777787299,0.1669281,63382.0,63381.0,0.220288]
[1728777792794,0.14221185,63382.0,63381.0,0.220288]
[1728777794381,0.14221185,63382.0,63381.0,0.2321355]
[1728777795993,0.14221185,63382.0,63381.0,0.23213595]
[1728777797108,0.16692984,63382.0,63381.0,0.23213595]
[1728777798470,0.07072984,63382.0,63381.0,0.23213595]
[1728777799600,0.07076985,63382.0,63381.0,0.23213595]
[1728777800327,0.07076985,63382.0,63381.0,0.39335996]
[1728777800570,0.06992985,63382.0,63381.0,0.39335996]
[1728777803304,0.06992985,63382.0,63381.0,0.39336251]
[1728777803496,0.04521186,63382.0,63381.0,0.39336251]
[1728777804498,0.06992737,63382.0,63381.0,0.39336251]
[1728777807281,0.06992737,63382.0,63381.0,0.41232215]
[1728777807496,0.04521186,63382.0,63381.0,0.41232215]
[1728777807969,0.04521186,63382.0,63381.0,0.53341461]
[1728777808502,0.04521186,63382.0,63381.0,0.43532215]
[1728777808724,0.04521285,63382.0,63381.0,0.51940667]
[1728777809155,0.04521285,63382.0,63381.0,0.53340667]
[1728777810050,0.0215754,63382.0,63381.0,0.53340667]
[1728777810289,0.0215754,63382.0,63381.0,0.51940667]
[1728777810507,0.0236338,63386.0,63385.0,0.157766]
[1728777810726,0.001642,63387.0,63386.0,0.25585546]
[1728777810945,0.02527608,63387.0,63386.0,0.41707947]
[1728777811166,0.02527608,63387.0,63386.0,0.4417682]
[1728777811391,0.02527608,63387.0,63386.0,0.46352742]
[1728777811900,0.04999104,63387.0,63386.0,0.46352742]
[1728777812119,0.02635696,63387.0,63386.0,0.47752742]
[1728777812788,0.02635696,63387.0,63386.0,0.49152742]
[1728777815436,0.02635696,63387.0,63386.0,0.79182742]
[1728777815904,0.001642,63387.0,63386.0,0.79182742]
[1728777816341,0.001642,63387.0,63386.0,0.77782742]
[1728777816568,0.001642,63387.0,63386.0,0.79894369]
[1728777817024,0.001642,63387.0,63386.0,0.78494369]
[1728777817265,0.001642,63387.0,63386.0,0.79894369]
[1728777817694,0.001642,63387.0,63386.0,0.78494369]
[1728777818411,0.001642,63387.0,63386.0,0.79894369]
[1728777818651,0.001642,63387.0,63386.0,0.78494369]
[1728777819325,0.001642,63387.0,63386.0,0.79894369]
[1728777825378,0.001642,63387.0,63386.0,0.78609886]
[1728777825606,0.001642,63387.0,63386.0,0.79892575]
[1728777826463,0.001642,63387.0,63386.0,0.77425496]
[1728777828062,0.001642,63387.0,63386.0,0.80592496]
[1728777828726,0.001642,63387.0,63386.0,0.80869415]
[1728777828987,0.001642,63387.0,63386.0,0.80476912]
[1728777829611,0.001642,63387.0,63386.0,0.80259905]
[1728777829817,0.001642,63387.0,63386.0,0.81659905]
[1728777830258,0.001642,63387.0,63386.0,0.82944321]
[1728777830468,0.01641134,63387.0,63386.0,0.81659905]
[1728777830673,0.01641134,63387.0,63386.0,0.83059905]
[1728777831115,0.01641134,63387.0,63386.0,0.81659905]
[1728777831546,0.01641134,63387.0,63386.0,0.83059905]
[1728777831970,0.01641134,63387.0,63386.0,0.65329905]
[1728777837004,0.001642,63387.0,63386.0,0.65329905]
[1728777837215,0.01642635,63387.0,63386.0,0.65329905]
[1728777838291,0.01642635,63387.0,63386.0,0.53220659]
[1728777838499,0.01642635,63387.0,63386.0,0.63029905]
[1728777839606,0.01643652,63387.0,63386.0,0.63029905]
[1728777840503,0.01643652,63387.0,63386.0,0.61846912]
[1728777840718,0.01643652,63387.0,63386.0,0.63031711]
[1728777841367,0.01643652,63387.0,63386.0,0.63374417]
[1728777842455,0.001642,63388.0,63387.0,0.257761]
[1728777842684,0.001642,63388.0,63387.0,0.44367716]
[1728777842904,0.001642,63388.0,63387.0,0.46813996]
[1728777843422,0.001642,63388.0,63387.0,0.46814158]
[1728777843629,0.001642,63388.0,63387.0,0.48214158]
[1728777844086,0.001642,63388.0,63387.0,0.49614158]
[1728777850628,0.001642,63388.0,63387.0,0.47144781]
[1728777850908,0.001642,63388.0,63387.0,0.49614598]
[1728777854586,0.01645644,63388.0,63387.0,0.49614598]
[1728777856572,0.01645644,63388.0,63387.0,0.48330169]
[1728777856797,0.01645644,63388.0,63387.0,0.49614598]
[1728777858335,0.01645644,63388.0,63387.0,0.49957497]
[1728777858596,0.01645644,63388.0,63387.0,0.49614598]
[1728777859519,0.001642,63391.0,63390.0,0.25584546]
[1728777859780,0.001642,63391.0,63390.0,0.44176764]
[1728777859984,0.001642,63391.0,63390.0,0.4662119]
[1728777861110,0.001642,63391.0,63390.0,0.4802119]
[1728777862022,0.001642,63391.0,63390.0,0.48021203]
[1728777862225,0.001642,63391.0,63390.0,0.49421203]
[1728777866658,0.001642,63391.0,63390.0,0.69051203]
[1728777867584,0.001642,63391.0,63390.0,0.70039209]
[1728777868225,0.001642,63391.0,63390.0,0.7160223]
[1728777871573,0.0164582,63391.0,63390.0,0.7160223]
[1728777872179,0.0164582,63391.0,63390.0,0.7634232]
[1728777872665,0.01645521,63391.0,63390.0,0.71602068]
[1728777873138,0.01645521,63391.0,63390.0,0.76341365]
[1728777874452,0.00560146,63393.0,63392.0,0.157748]
[1728777874687,0.001642,63398.0,63392.0,0.19580075]
[1728777874867,0.001642,63398.0,63397.0,0.25582846]
[1728777875097,0.001642,63398.0,63397.0,0.45162921]
[1728777875310,0.001642,63398.0,63397.0,0.47604583]
[1728777875516,0.001642,63398.0,63397.0,0.46616638]
[1728777876562,0.001642,63398.0,63397.0,0.48016638]
[1728777877864,0.001642,63398.0,63397.0,0.49416638]
[1728777880026,0.001642,63398.0,63397.0,0.49415507]
[1728777883574,0.001642,63398.0,63397.0,0.49415556]
[1728777886546,0.01644801,63398.0,63397.0,0.49415556]
[1728777887299,0.01644801,63398.0,63397.0,0.48131291]
[1728777887533,0.01644801,63398.0,63397.0,0.49415642]
[1728777890501,0.01644902,63398.0,63397.0,0.4941562]
[1728777891761,0.04116045,63398.0,63397.0,0.4941562]
[1728777897694,0.01644902,63398.0,63397.0,0.4941562]
[1728777900649,0.04116058,63398.0,63397.0,0.4941562]
[1728777901557,0.02635356,63398.0,63397.0,0.48921655]
[1728777901764,0.04116926,63398.0,63397.0,0.49416329]
[1728777902820,0.02635356,63398.0,63397.0,0.49416329]
[1728777903042,0.04116926,63398.0,63397.0,0.49416329]
[1728777905026,0.04116926,63398.0,63397.0,0.59225575]
[1728777905262,0.04116926,63398.0,63397.0,0.49416323]
[1728777905524,0.04116926,63398.0,63397.0,0.68095569]
[1728777906001,0.04116926,63398.0,63397.0,0.68426815]
[1728777906478,0.04116926,63398.0,63397.0,0.69495569]
[1728777906940,0.04116926,63398.0,63397.0,0.67026815]
[1728777907170,0.00560542,63398.0,63397.0,0.69826815]
[1728777907395,0.00560542,63398.0,63397.0,0.68095569]
[1728777907850,0.00560542,63398.0,63397.0,0.69495569]
[1728777908327,0.00560542,63398.0,63397.0,0.5242608]
[1728777911141,0.00724742,63398.0,63397.0,0.5242608]
[1728777912670,0.001642,63398.0,63397.0,0.52424587]
[1728777919327,0.01644238,63398.0,63397.0,0.52424587]
[1728777919571,0.0164423,63398.0,63397.0,0.52424587]
[1728777919865,0.001642,63398.0,63397.0,0.49956666]
[1728777920071,0.0164423,63398.0,63397.0,0.5242428]
[1728777920947,0.0164423,63398.0,63397.0,0.52424294]
[1728777922415,0.0164423,63398.0,63397.0,0.6223354]
[1728777922634,0.0164423,63398.0,63397.0,0.6231564]
[1728777922856,0.0164423,63398.0,63397.0,0.52506394]
[1728777923536,0.01644206,63398.0,63397.0,0.40703142]
[1728777923817,0.10964206,63398.0,63397.0,0.49496431]
[1728777927182,0.094842,63398.0,63397.0,0.48212182]
[1728777927436,0.10964453,63398.0,63397.0,0.49496501]
[1728777927723,0.10964453,63398.0,63397.0,0.48212212]
[1728777927952,0.10964453,63398.0,63397.0,0.49496501]
[1728777934510,0.094842,63398.0,63397.0,0.48212857]
[1728777934759,0.1096534,63398.0,63397.0,0.49497146]
[1728777935214,0.0164534,63398.0,63397.0,0.49497146]
[1728777938256,0.01645277,63398.0,63397.0,0.49497141]
[1728777939482,0.01645277,63398.0,63397.0,0.39687895]
[1728777939705,0.01645277,63398.0,63397.0,0.49497141]
[1728777941119,0.04116215,63398.0,63397.0,0.49497141]
[1728777941877,0.02635138,63398.0,63397.0,0.48212852]
[1728777942127,0.04116133,63398.0,63397.0,0.49497179]
[1728777943761,0.04116045,63398.0,63397.0,0.49497179]
[1728777947394,0.01645107,63398.0,63397.0,0.49497179]
[1728777948627,0.01645107,63398.0,63397.0,0.50485126]
[1728777950594,0.02635128,63398.0,63397.0,0.47029009]
[1728777950803,0.04116084,63398.0,63397.0,0.47029009]
[1728777951030,0.04116084,63398.0,63397.0,0.50485041]
[1728777951248,0.04116091,63398.0,63397.0,0.50485041]
[1728777953153,0.02635128,63398.0,63397.0,0.47029009]
[1728777953390,0.04116234,63398.0,63397.0,0.5048523]
[1728777953594,0.04116234,63398.0,63397.0,0.50485399]
[1728777957080,0.02635128,63398.0,63397.0,0.48213119]
[1728777957286,0.04116228,63398.0,63397.0,0.50485413]
[1728777957489,0.016453,63398.0,63397.0,0.50485413]
[1728777960534,0.04116221,63398.0,63397.0,0.50485413]
[1728777960918,0.04116221,63398.0,63397.0,0.50485337]
[1728777964240,0.04116403,63398.0,63397.0,0.50485418]
[1728777964467,0.04116403,63398.0,63397.0,0.5572017]
[1728777964734,0.04116403,63398.0,63397.0,0.54536065]
[1728777968294,0.02635121,63398.0,63397.0,0.52263757]
[1728777968548,0.02635121,63398.0,63397.0,0.54536271]
[1728777970680,0.001642,63398.0,63397.0,0.54536271]
[1728777971094,0.001642,63398.0,63397.0,0.50485639]
[1728777972273,0.001642,63398.0,63397.0,0.50485702]
[1728777976220,0.001642,63398.0,63397.0,0.50485776]
[1728777977150,0.001642,63398.0,63397.0,0.48213468]
[1728777977392,0.001642,63398.0,63397.0,0.50485776]
[1728777978248,0.001642,63398.0,63397.0,0.49985776]
[1728777980410,0.02635262,63398.0,63397.0,0.49985517]
[1728777982807,0.02635262,63398.0,63397.0,0.40176271]
[1728777983046,0.02635262,63398.0,63397.0,0.49985517]
[1728777983959,0.02635262,63398.0,63397.0,0.48997571]